[Event "Early-Titled-Tuesday-Blitz-July-09-2024"]
[Site "Chess.com"]
[Date "2024.07.09"]
[Round "5"]
[White "GHANDEEVAM2003"]
[Black "sergoy"]
[Result "0-1"]
[WhiteElo "3173"]
[BlackElo "2953"]
[TimeControl "180+1"]
[EndTime "8:59:00 PDT"]
[Termination "sergoy won by resignation"]

1. c4 {[%clk 0:03:00.9]} 1... e5 {[%clk 0:02:59.9]} 2. d3 {[%clk 0:03:00.4]}
2... Nf6 {[%clk 0:03:00]} 3. Nf3 {[%clk 0:02:59.4]} 3... Nc6 {[%clk 0:03:00.2]}
4. a3 {[%clk 0:02:59.8]} 4... d5 {[%clk 0:02:59.8]} 5. cxd5 {[%clk 0:03:00.5]}
5... Nxd5 {[%clk 0:03:00.7]} 6. e3 {[%clk 0:02:58.5]} 6... g5 {[%clk 0:02:56.9]}
7. b4 {[%clk 0:02:57.4]} 7... g4 {[%clk 0:02:56.4]} 8. b5 {[%clk 0:02:57.9]}
8... gxf3 {[%clk 0:02:53.5]} 9. bxc6 {[%clk 0:02:58.1]} 9... fxg2 {[%clk
0:02:53.5]} 10. Bxg2 {[%clk 0:02:59]} 10... bxc6 {[%clk 0:02:53.6]} 11. Nd2
{[%clk 0:02:53]} 11... Bd6 {[%clk 0:02:52.2]} 12. Nc4 {[%clk 0:02:50.3]} 12...
Be6 {[%clk 0:02:39.7]} 13. Qc2 {[%clk 0:02:47.3]} 13... Qd7 {[%clk 0:02:25.2]}
14. Bb2 {[%clk 0:02:46.4]} 14... f6 {[%clk 0:02:25.2]} 15. d4 {[%clk 0:02:40.7]}
15... exd4 {[%clk 0:02:19.8]} 16. Bxd4 {[%clk 0:02:41.6]} 16... O-O {[%clk
0:02:20]} 17. h4 {[%clk 0:02:26.1]} 17... Qe7 {[%clk 0:02:12.6]} 18. h5 {[%clk
0:02:13.3]} 18... Bc5 {[%clk 0:02:03]} 19. Bb2 {[%clk 0:02:10.3]} 19... Rab8
{[%clk 0:02:01]} 20. h6 {[%clk 0:02:05.5]} 20... Kh8 {[%clk 0:01:32.3]} 21. Rg1
{[%clk 0:01:57.5]} 21... Rg8 {[%clk 0:01:12.1]} 22. O-O-O {[%clk 0:01:57.5]}
22... Rxb2 {[%clk 0:00:59.6]} 23. Nxb2 {[%clk 0:01:37.9]} 23... Bxa3 {[%clk
0:00:42.5]} 24. Bxd5 {[%clk 0:01:36.9]} 24... cxd5 {[%clk 0:00:43.4]} 25. Rxg8+
{[%clk 0:01:28.7]} 25... Bxg8 {[%clk 0:00:44.3]} 26. Kb1 {[%clk 0:01:14.2]}
26... Qf7 {[%clk 0:00:41.7]} 27. Rd4 {[%clk 0:01:03.5]} 27... Bf8 {[%clk
0:00:39]} 28. Rh4 {[%clk 0:00:53.5]} 28... c5 {[%clk 0:00:36.8]} 29. Qa4 {[%clk
0:00:47.8]} 29... Qg6+ {[%clk 0:00:33.5]} 30. Kc1 {[%clk 0:00:48]} 30... Bxh6
{[%clk 0:00:29.1]} 31. Qxa7 {[%clk 0:00:40.1]} 31... c4 {[%clk 0:00:28.3]} 32.
Qd4 {[%clk 0:00:38.2]} 32... Bg7 {[%clk 0:00:28.3]} 33. Qg4 {[%clk 0:00:32.2]}
33... Qxg4 {[%clk 0:00:24.5]} 34. Rxg4 {[%clk 0:00:33.1]} 34... Be6 {[%clk
0:00:25]} 35. Rh4 {[%clk 0:00:31.5]} 35... Bf8 {[%clk 0:00:22.9]} 36. Na4 {[%clk
0:00:26.9]} 36... Kg7 {[%clk 0:00:21.8]} 37. Nc3 {[%clk 0:00:23.6]} 37... Bb4
{[%clk 0:00:13.9]} 38. Ne2 {[%clk 0:00:21.6]} 38... Bf7 {[%clk 0:00:11]} 39. Nd4
{[%clk 0:00:19.1]} 39... h5 {[%clk 0:00:10.6]} 40. Rh1 {[%clk 0:00:12.6]} 40...
Bc5 {[%clk 0:00:10.9]} 41. Rg1+ {[%clk 0:00:11.6]} 41... Kf8 {[%clk 0:00:11.3]}
42. Nf5 {[%clk 0:00:10.6]} 42... Be6 {[%clk 0:00:11.5]} 43. Ng7 {[%clk
0:00:10.3]} 43... Bg4 {[%clk 0:00:11.6]} 44. Kc2 {[%clk 0:00:05.2]} 44... Kxg7
{[%clk 0:00:11.1]} 45. f3 {[%clk 0:00:05.9]} 45... Bxe3 {[%clk 0:00:11.5]} 46.
Re1 {[%clk 0:00:06.2]} 46... Bf4 {[%clk 0:00:08.9]} 47. fxg4 {[%clk 0:00:06.3]}
47... hxg4 {[%clk 0:00:09.4]} 48. Kc3 {[%clk 0:00:04.5]} 48... Be5+ {[%clk
0:00:09.4]} 49. Kb4 {[%clk 0:00:04.7]} 49... g3 {[%clk 0:00:09.6]} 50. Kc5
{[%clk 0:00:04.9]} 50... c3 {[%clk 0:00:08.2]} 51. Kxd5 {[%clk 0:00:05.2]} 51...
c2 {[%clk 0:00:08.2]} 52. Rc1 {[%clk 0:00:05.1]} 52... g2 {[%clk 0:00:08.5]} 53.
Rg1 {[%clk 0:00:05.7]} 53... Kf7 {[%clk 0:00:08.4]} 54. Ke4 {[%clk 0:00:05.5]}
54... Bb2 {[%clk 0:00:08.5]} 55. Kf3 {[%clk 0:00:06.2]} 55... c1=Q {[%clk
0:00:09]} 56. Rxc1 {[%clk 0:00:06.9]} 56... Bxc1 {[%clk 0:00:09.4]} 57. Kxg2
{[%clk 0:00:07.8]} 57... Ke6 {[%clk 0:00:10]} 58. Kf3 {[%clk 0:00:08.7]} 58...
Kf5 {[%clk 0:00:10.7]} 59. Ke2 {[%clk 0:00:09.6]} 59... Ke4 {[%clk 0:00:11.2]}
0-1

[Event "Early-Titled-Tuesday-Blitz-July-09-2024"]
[Site "Chess.com"]
[Date "2024.07.09"]
[Round "5"]
[White "Timerkhanov"]
[Black "GiorgianBarbosa"]
[Result "0-1"]
[WhiteElo "2662"]
[BlackElo "2515"]
[TimeControl "180+1"]
[EndTime "8:59:05 PDT"]
[Termination "GiorgianBarbosa won by checkmate"]

1. d4 {[%clk 0:03:00.9]} 1... Nf6 {[%clk 0:02:59.7]} 2. Bg5 {[%clk 0:03:01.1]}
2... e6 {[%clk 0:03:00.6]} 3. Nd2 {[%clk 0:02:59.8]} 3... d5 {[%clk 0:03:00.2]}
4. e3 {[%clk 0:02:59.8]} 4... Be7 {[%clk 0:03:00.4]} 5. Bd3 {[%clk 0:03:00]}
5... O-O {[%clk 0:02:59]} 6. f4 {[%clk 0:02:59.6]} 6... b6 {[%clk 0:02:56.7]} 7.
Qe2 {[%clk 0:02:58.3]} 7... c5 {[%clk 0:02:55.8]} 8. c3 {[%clk 0:02:57.9]} 8...
Bb7 {[%clk 0:02:56.2]} 9. Bxf6 {[%clk 0:02:58.2]} 9... Bxf6 {[%clk 0:02:55.4]}
10. Ngf3 {[%clk 0:02:59.1]} 10... Nc6 {[%clk 0:02:45]} 11. O-O {[%clk 0:02:58]}
11... Ne7 {[%clk 0:02:39.9]} 12. g4 {[%clk 0:02:55.3]} 12... g6 {[%clk
0:02:39.3]} 13. h4 {[%clk 0:02:52.6]} 13... Bg7 {[%clk 0:02:33.7]} 14. Kg2
{[%clk 0:02:42.2]} 14... Qd6 {[%clk 0:02:32.8]} 15. Rh1 {[%clk 0:02:39.1]} 15...
a6 {[%clk 0:02:26.7]} 16. h5 {[%clk 0:02:38.5]} 16... Rfc8 {[%clk 0:02:10.8]}
17. hxg6 {[%clk 0:02:36]} 17... hxg6 {[%clk 0:02:10.3]} 18. Ne5 {[%clk
0:02:35.1]} 18... b5 {[%clk 0:02:02.4]} 19. Qf3 {[%clk 0:02:17.4]} 19... b4
{[%clk 0:02:01.2]} 20. Qh3 {[%clk 0:02:15.9]} 20... Kf8 {[%clk 0:01:58.2]} 21.
Ndf3 {[%clk 0:02:02.2]} 21... bxc3 {[%clk 0:01:54.2]} 22. bxc3 {[%clk 0:02:02]}
22... cxd4 {[%clk 0:01:55.1]} 23. cxd4 {[%clk 0:02:01.4]} 23... Rc3 {[%clk
0:01:53.9]} 24. Ng5 {[%clk 0:01:58.5]} 24... Qa3 {[%clk 0:01:30.5]} 25. Nh7+
{[%clk 0:01:12.2]} 25... Ke8 {[%clk 0:01:22.7]} 26. Rad1 {[%clk 0:00:53.3]}
26... Bxe5 {[%clk 0:01:04.1]} 27. fxe5 {[%clk 0:00:51]} 27... Rxd3 {[%clk
0:01:05]} 28. Nf6+ {[%clk 0:00:51.6]} 28... Kd8 {[%clk 0:01:05.1]} 29. Rc1
{[%clk 0:00:51]} 29... Rd2+ {[%clk 0:00:55.9]} 30. Kf3 {[%clk 0:00:49.5]} 30...
Nc6 {[%clk 0:00:40.7]} 31. Qh8+ {[%clk 0:00:46.5]} 31... Kc7 {[%clk 0:00:40.9]}
32. Qg7 {[%clk 0:00:40.4]} 32... Qf8 {[%clk 0:00:10.1]} 33. Rh7 {[%clk 0:00:40]}
33... Qxg7 {[%clk 0:00:09.5]} 34. Rxg7 {[%clk 0:00:40.9]} 34... Rf8 {[%clk
0:00:09.9]} 35. Nh7 {[%clk 0:00:41.3]} 35... Rd8 {[%clk 0:00:08.8]} 36. Rxf7+
{[%clk 0:00:41.9]} 36... Rd7 {[%clk 0:00:09.4]} 37. Rf6 {[%clk 0:00:41]} 37...
Rxh7 {[%clk 0:00:09.2]} 38. Rxg6 {[%clk 0:00:39]} 38... Rhh2 {[%clk 0:00:08.7]}
39. Kf4 {[%clk 0:00:39.4]} 39... Rdf2+ {[%clk 0:00:08.1]} 40. Kg5 {[%clk
0:00:38.7]} 40... Rxa2 {[%clk 0:00:08.6]} 41. Rg7+ {[%clk 0:00:39]} 41... Kb6
{[%clk 0:00:08.8]} 42. Rb1+ {[%clk 0:00:39.2]} 42... Rab2 {[%clk 0:00:09.4]} 43.
Rc1 {[%clk 0:00:37.7]} 43... Rhc2 {[%clk 0:00:08.5]} 44. Ra1 {[%clk 0:00:37]}
44... a5 {[%clk 0:00:08.7]} 45. Rg6 {[%clk 0:00:37.5]} 45... Nd8 {[%clk
0:00:08]} 46. Rg8 {[%clk 0:00:37.5]} 46... Nc6 {[%clk 0:00:08.3]} 47. Re8 {[%clk
0:00:37.4]} 47... Kc7 {[%clk 0:00:07.7]} 48. Rxe6 {[%clk 0:00:37.5]} 48... Rf2
{[%clk 0:00:08.2]} 49. Rh6 {[%clk 0:00:33.6]} 49... Rf7 {[%clk 0:00:08.1]} 50.
e6 {[%clk 0:00:33]} 50... Re7 {[%clk 0:00:08.1]} 51. Rf1 {[%clk 0:00:32.1]}
51... Kd6 {[%clk 0:00:08]} 52. Kf5 {[%clk 0:00:24.9]} 52... Bc8 {[%clk
0:00:06.6]} 53. g5 {[%clk 0:00:24]} 53... Re2 {[%clk 0:00:06.1]} 54. g6 {[%clk
0:00:20.2]} 54... Rxe3 {[%clk 0:00:06.3]} 55. Kg5 {[%clk 0:00:18.2]} 55... Nxd4
{[%clk 0:00:05.9]} 56. Rh7 {[%clk 0:00:12.9]} 56... Bxe6 {[%clk 0:00:05.4]} 57.
g7 {[%clk 0:00:07.4]} 57... Rg3+ {[%clk 0:00:05.2]} 58. Kf6 {[%clk 0:00:07.5]}
58... Rf7# {[%clk 0:00:03.5]} 0-1

[Event "Early-Titled-Tuesday-Blitz-July-09-2024"]
[Site "Chess.com"]
[Date "2024.07.09"]
[Round "5"]
[White "ShahMatKanal"]
[Black "VirtualCoach"]
[Result "1-0"]
[WhiteElo "2551"]
[BlackElo "2320"]
[TimeControl "180+1"]
[EndTime "8:59:07 PDT"]
[Termination "ShahMatKanal won on time"]

1. d4 {[%clk 0:03:00.9]} 1... Nf6 {[%clk 0:02:59.7]} 2. c4 {[%clk 0:02:59.9]}
2... e6 {[%clk 0:02:55.5]} 3. Nc3 {[%clk 0:02:59.4]} 3... Bb4 {[%clk 0:02:54.6]}
4. Qc2 {[%clk 0:02:58.5]} 4... O-O {[%clk 0:02:52.5]} 5. a3 {[%clk 0:02:58.2]}
5... Bxc3+ {[%clk 0:02:52.4]} 6. Qxc3 {[%clk 0:02:58.6]} 6... d5 {[%clk
0:02:53.1]} 7. Bg5 {[%clk 0:02:56.2]} 7... Nbd7 {[%clk 0:02:52.4]} 8. e3 {[%clk
0:02:55.4]} 8... h6 {[%clk 0:02:52.7]} 9. Bh4 {[%clk 0:02:49.3]} 9... c5 {[%clk
0:02:48.7]} 10. Nf3 {[%clk 0:02:40.2]} 10... cxd4 {[%clk 0:02:48.4]} 11. exd4
{[%clk 0:02:37.9]} 11... dxc4 {[%clk 0:02:48.1]} 12. Bxc4 {[%clk 0:02:34.4]}
12... Nb6 {[%clk 0:02:48.3]} 13. Ba2 {[%clk 0:02:29]} 13... Nbd5 {[%clk
0:02:48.2]} 14. Qd2 {[%clk 0:02:15.8]} 14... Qb6 {[%clk 0:02:44.4]} 15. O-O
{[%clk 0:02:07.4]} 15... Bd7 {[%clk 0:02:42.6]} 16. Ne5 {[%clk 0:01:58.5]} 16...
Bb5 {[%clk 0:02:41.9]} 17. Rfe1 {[%clk 0:01:54.3]} 17... Rad8 {[%clk 0:02:29.4]}
18. Rad1 {[%clk 0:01:50.6]} 18... Rd6 {[%clk 0:02:21]} 19. Nc4 {[%clk
0:01:45.4]} 19... Bxc4 {[%clk 0:02:19.7]} 20. Bxc4 {[%clk 0:01:46.3]} 20... Rc8
{[%clk 0:02:14.5]} 21. Ba2 {[%clk 0:01:43.8]} 21... Rd7 {[%clk 0:02:02.1]} 22.
Bb1 {[%clk 0:01:34]} 22... Rcd8 {[%clk 0:01:58.2]} 23. b4 {[%clk 0:01:27]} 23...
Qd6 {[%clk 0:01:50.2]} 24. Bg3 {[%clk 0:01:26]} 24... Qe7 {[%clk 0:01:50.3]} 25.
Qd3 {[%clk 0:01:19.4]} 25... Nb6 {[%clk 0:01:48]} 26. Be5 {[%clk 0:01:18.1]}
26... Nbd5 {[%clk 0:01:36.5]} 27. Rc1 {[%clk 0:01:13.8]} 27... Ra8 {[%clk
0:01:25.8]} 28. Rc5 {[%clk 0:01:12]} 28... a5 {[%clk 0:01:22.6]} 29. b5 {[%clk
0:00:58.9]} 29... a4 {[%clk 0:00:58.9]} 30. Rec1 {[%clk 0:00:58.5]} 30... g6
{[%clk 0:00:56.8]} 31. Rc8+ {[%clk 0:00:53.7]} 31... Rxc8 {[%clk 0:00:55.8]} 32.
Rxc8+ {[%clk 0:00:54.6]} 32... Rd8 {[%clk 0:00:54.4]} 33. Rc1 {[%clk 0:00:50]}
33... Nb6 {[%clk 0:00:48.7]} 34. h4 {[%clk 0:00:48.4]} 34... Nbd7 {[%clk
0:00:37.6]} 35. Bf4 {[%clk 0:00:45.8]} 35... Nd5 {[%clk 0:00:35.6]} 36. Bxh6
{[%clk 0:00:43.8]} 36... Qxh4 {[%clk 0:00:35]} 37. Bd2 {[%clk 0:00:40.5]} 37...
Qf6 {[%clk 0:00:26.4]} 38. g3 {[%clk 0:00:38.6]} 38... N7b6 {[%clk 0:00:25.9]}
39. Ba5 {[%clk 0:00:34.4]} 39... Ra8 {[%clk 0:00:21.8]} 40. Bxb6 {[%clk
0:00:30.8]} 40... Nxb6 {[%clk 0:00:22.7]} 41. Rc7 {[%clk 0:00:30.9]} 41... Rd8
{[%clk 0:00:22.1]} 42. Rxb7 {[%clk 0:00:29.2]} 42... Rxd4 {[%clk 0:00:20.4]} 43.
Qe2 {[%clk 0:00:16.3]} 43... Nd5 {[%clk 0:00:20.6]} 44. Bd3 {[%clk 0:00:07.3]}
44... Nc3 {[%clk 0:00:20.5]} 45. Qe3 {[%clk 0:00:06.2]} 45... Nd1 {[%clk
0:00:17.1]} 46. Qe2 {[%clk 0:00:05.1]} 46... Nc3 {[%clk 0:00:12.1]} 47. Qd2
{[%clk 0:00:03.6]} 47... Ne4 {[%clk 0:00:11.7]} 48. Qe3 {[%clk 0:00:03.6]} 48...
Ng5 {[%clk 0:00:11.9]} 49. Kg2 {[%clk 0:00:01.9]} 49... Rd8 {[%clk 0:00:08.8]}
50. Rb6 {[%clk 0:00:01.9]} 50... Nh7 {[%clk 0:00:07.9]} 51. Be2 {[%clk
0:00:02.1]} 51... Nf8 {[%clk 0:00:08.1]} 52. Bf3 {[%clk 0:00:02.4]} 52... Nd7
{[%clk 0:00:08.7]} 53. Rc6 {[%clk 0:00:02.5]} 53... Ne5 {[%clk 0:00:09.1]} 54.
Rc7 {[%clk 0:00:02.7]} 54... g5 {[%clk 0:00:07.7]} 55. b6 {[%clk 0:00:02.6]}
55... g4 {[%clk 0:00:08.3]} 56. Be4 {[%clk 0:00:02.8]} 56... Ng6 {[%clk
0:00:05.8]} 57. b7 {[%clk 0:00:02.8]} 57... Qe5 {[%clk 0:00:03.8]} 58. Rc8
{[%clk 0:00:02.8]} 1-0

[Event "Early-Titled-Tuesday-Blitz-July-09-2024"]
[Site "Chess.com"]
[Date "2024.07.09"]
[Round "5"]
[White "Irina_Mikhaylova"]
[Black "FerAsensio2024"]
[Result "0-1"]
[WhiteElo "2386"]
[BlackElo "2530"]
[TimeControl "180+1"]
[EndTime "8:59:09 PDT"]
[Termination "FerAsensio2024 won on time"]

1. d4 {[%clk 0:03:00.9]} 1... d5 {[%clk 0:02:59]} 2. Nf3 {[%clk 0:03:01.1]} 2...
Nf6 {[%clk 0:02:57.5]} 3. c4 {[%clk 0:03:01.2]} 3... e6 {[%clk 0:02:55]} 4. Bg5
{[%clk 0:03:00.6]} 4... Be7 {[%clk 0:02:54.2]} 5. e3 {[%clk 0:03:00.2]} 5... h6
{[%clk 0:02:54.4]} 6. Bh4 {[%clk 0:03:00]} 6... O-O {[%clk 0:02:55]} 7. Nc3
{[%clk 0:02:59.8]} 7... a6 {[%clk 0:02:44.9]} 8. a3 {[%clk 0:02:59.3]} 8... Nbd7
{[%clk 0:02:40.8]} 9. Qc2 {[%clk 0:02:59.2]} 9... Rb8 {[%clk 0:02:31.2]} 10. Rd1
{[%clk 0:02:58.6]} 10... dxc4 {[%clk 0:02:19.3]} 11. Bxc4 {[%clk 0:02:58.1]}
11... b5 {[%clk 0:02:20]} 12. Ba2 {[%clk 0:02:58.3]} 12... Bb7 {[%clk
0:02:11.4]} 13. Bb1 {[%clk 0:02:57.7]} 13... g6 {[%clk 0:02:00.4]} 14. Bxf6
{[%clk 0:02:34.8]} 14... Nxf6 {[%clk 0:01:58.7]} 15. Ne5 {[%clk 0:02:35]} 15...
Qe8 {[%clk 0:01:48.8]} 16. h4 {[%clk 0:02:17.5]} 16... h5 {[%clk 0:01:40.4]} 17.
Rg1 {[%clk 0:02:10.3]} 17... Kg7 {[%clk 0:00:55]} 18. f3 {[%clk 0:01:46.1]}
18... Nd5 {[%clk 0:00:41.4]} 19. Nxd5 {[%clk 0:01:41.6]} 19... exd5 {[%clk
0:00:34.6]} 20. g3 {[%clk 0:01:29.4]} 20... Bd6 {[%clk 0:00:27.9]} 21. f4 {[%clk
0:01:07.9]} 21... c5 {[%clk 0:00:26.3]} 22. Kf2 {[%clk 0:01:01.3]} 22... Rc8
{[%clk 0:00:26.5]} 23. Qd2 {[%clk 0:00:46.9]} 23... Qe7 {[%clk 0:00:20.8]} 24.
Rge1 {[%clk 0:00:37.3]} 24... Rce8 {[%clk 0:00:19.1]} 25. Kg2 {[%clk 0:00:36.7]}
25... Bc8 {[%clk 0:00:15]} 26. Rf1 {[%clk 0:00:34.8]} 26... c4 {[%clk
0:00:13.6]} 27. Rde1 {[%clk 0:00:30.3]} 27... f6 {[%clk 0:00:12.1]} 28. Nf3
{[%clk 0:00:30.1]} 28... Bb7 {[%clk 0:00:05.2]} 29. Qc2 {[%clk 0:00:24.6]} 29...
Qf7 {[%clk 0:00:05.2]} 30. Ne5 {[%clk 0:00:17.7]} 30... Bxe5 {[%clk 0:00:03]}
31. fxe5 {[%clk 0:00:18.1]} 31... f5 {[%clk 0:00:03.4]} 32. Qf2 {[%clk
0:00:13.2]} 32... Qe7 {[%clk 0:00:01.9]} 33. Qf4 {[%clk 0:00:12.5]} 33... a5
{[%clk 0:00:01.6]} 34. Bc2 {[%clk 0:00:12.3]} 34... b4 {[%clk 0:00:02.1]} 35.
Ba4 {[%clk 0:00:12.7]} 35... Rc8 {[%clk 0:00:02.2]} 36. Bb5 {[%clk 0:00:12.5]}
36... Bc6 {[%clk 0:00:02]} 37. Bxc6 {[%clk 0:00:12.3]} 37... Rxc6 {[%clk
0:00:02.9]} 38. e4 {[%clk 0:00:10.1]} 38... dxe4 {[%clk 0:00:01.8]} 39. d5
{[%clk 0:00:10.1]} 39... Rcc8 {[%clk 0:00:01.6]} 40. d6 {[%clk 0:00:09.3]} 40...
Qe6 {[%clk 0:00:01.9]} 41. Rd1 {[%clk 0:00:08.5]} 41... Rfd8 {[%clk 0:00:02.4]}
42. Rd4 {[%clk 0:00:07.5]} 42... Rd7 {[%clk 0:00:02.8]} 43. Rfd1 {[%clk
0:00:07.4]} 43... bxa3 {[%clk 0:00:03.1]} 44. bxa3 {[%clk 0:00:07.2]} 44... c3
{[%clk 0:00:03.6]} 45. Qe3 {[%clk 0:00:06.6]} 45... Rc5 {[%clk 0:00:03.3]} 46.
Qf4 {[%clk 0:00:05.3]} 46... Qxe5 {[%clk 0:00:03.5]} 47. Qxe5+ {[%clk
0:00:05.6]} 47... Rxe5 {[%clk 0:00:04.4]} 48. Rc4 {[%clk 0:00:06.1]} 48... Re6
{[%clk 0:00:03.9]} 49. Rxc3 {[%clk 0:00:06.3]} 49... Rexd6 {[%clk 0:00:04.1]}
50. Rxd6 {[%clk 0:00:06.8]} 50... Rxd6 {[%clk 0:00:05]} 51. Kh3 {[%clk
0:00:07.3]} 51... Rd3 {[%clk 0:00:04.6]} 52. Rc7+ {[%clk 0:00:05.1]} 52... Kh6
{[%clk 0:00:04.6]} 53. Kg2 {[%clk 0:00:02.5]} 53... Rxa3 {[%clk 0:00:04.5]} 54.
Re7 {[%clk 0:00:02.6]} 54... Ra2+ {[%clk 0:00:03.8]} 55. Kf1 {[%clk 0:00:02.3]}
55... a4 {[%clk 0:00:03.8]} 0-1

[Event "Early-Titled-Tuesday-Blitz-July-09-2024"]
[Site "Chess.com"]
[Date "2024.07.09"]
[Round "5"]
[White "yonaltimur"]
[Black "AwareIdea"]
[Result "0-1"]
[WhiteElo "2248"]
[BlackElo "2487"]
[TimeControl "180+1"]
[EndTime "8:59:11 PDT"]
[Termination "AwareIdea won by checkmate"]

1. e4 {[%clk 0:03:00.9]} 1... c5 {[%clk 0:02:57.6]} 2. Nf3 {[%clk 0:03:00.8]}
2... d6 {[%clk 0:02:56.6]} 3. Bb5+ {[%clk 0:02:58.4]} 3... Nd7 {[%clk 0:02:55]}
4. O-O {[%clk 0:02:58]} 4... a6 {[%clk 0:02:54.3]} 5. Bd3 {[%clk 0:02:51.7]}
5... g6 {[%clk 0:02:53.5]} 6. c3 {[%clk 0:02:50.8]} 6... Bg7 {[%clk 0:02:52.8]}
7. Bc2 {[%clk 0:02:51.2]} 7... Ngf6 {[%clk 0:02:50.8]} 8. d4 {[%clk 0:02:51.6]}
8... cxd4 {[%clk 0:02:48.2]} 9. cxd4 {[%clk 0:02:52.5]} 9... O-O {[%clk
0:02:48.6]} 10. Nc3 {[%clk 0:02:51.9]} 10... b5 {[%clk 0:02:48.5]} 11. Re1
{[%clk 0:02:52]} 11... Bb7 {[%clk 0:02:48.2]} 12. a3 {[%clk 0:02:52.1]} 12...
Rc8 {[%clk 0:02:48.3]} 13. Bf4 {[%clk 0:02:49.3]} 13... Nb6 {[%clk 0:02:40.2]}
14. Bb3 {[%clk 0:02:30.5]} 14... Nc4 {[%clk 0:02:34.1]} 15. Qe2 {[%clk
0:02:27.1]} 15... Qb6 {[%clk 0:02:24.9]} 16. h3 {[%clk 0:02:13.4]} 16... Nh5
{[%clk 0:02:11.2]} 17. Be3 {[%clk 0:01:47]} 17... Nxe3 {[%clk 0:01:56.4]} 18.
Qxe3 {[%clk 0:01:47.9]} 18... e6 {[%clk 0:01:42]} 19. Rac1 {[%clk 0:01:38.7]}
19... Rfe8 {[%clk 0:01:29.4]} 20. Ne2 {[%clk 0:01:13.6]} 20... Nf6 {[%clk
0:01:12.8]} 21. Nc3 {[%clk 0:00:58.9]} 21... h6 {[%clk 0:01:00.6]} 22. Red1
{[%clk 0:00:53]} 22... Rc7 {[%clk 0:01:00.2]} 23. Rc2 {[%clk 0:00:48.7]} 23...
Rec8 {[%clk 0:00:59.8]} 24. Rdc1 {[%clk 0:00:48.5]} 24... a5 {[%clk 0:00:49.5]}
25. e5 {[%clk 0:00:48.5]} 25... dxe5 {[%clk 0:00:40.2]} 26. dxe5 {[%clk
0:00:48.6]} 26... Qxe3 {[%clk 0:00:23.2]} 27. fxe3 {[%clk 0:00:49.5]} 27... Nd7
{[%clk 0:00:22.5]} 28. Nxb5 {[%clk 0:00:49]} 28... Rxc2 {[%clk 0:00:22.2]} 29.
Rxc2 {[%clk 0:00:49.7]} 29... Rxc2 {[%clk 0:00:21.4]} 30. Bxc2 {[%clk
0:00:50.6]} 30... Nxe5 {[%clk 0:00:16.8]} 31. Nxe5 {[%clk 0:00:45.8]} 31... Bxe5
{[%clk 0:00:17.7]} 32. Nd4 {[%clk 0:00:43.7]} 32... Kf8 {[%clk 0:00:12.3]} 33.
Kf2 {[%clk 0:00:42.9]} 33... Ke7 {[%clk 0:00:12.3]} 34. Ba4 {[%clk 0:00:40.8]}
34... g5 {[%clk 0:00:08.8]} 35. g4 {[%clk 0:00:39.6]} 35... Bxd4 {[%clk
0:00:07.1]} 36. exd4 {[%clk 0:00:39.6]} 36... f5 {[%clk 0:00:07.3]} 37. b4
{[%clk 0:00:22.9]} 37... axb4 {[%clk 0:00:07.1]} 38. axb4 {[%clk 0:00:23.8]}
38... Kd6 {[%clk 0:00:07]} 39. Be8 {[%clk 0:00:20.8]} 39... Kd5 {[%clk
0:00:06.2]} 40. Bf7 {[%clk 0:00:21.2]} 40... Kxd4 {[%clk 0:00:04.4]} 41. Bxe6
{[%clk 0:00:21]} 41... f4 {[%clk 0:00:04.8]} 42. Bd7 {[%clk 0:00:17.6]} 42...
Kc4 {[%clk 0:00:04.4]} 43. b5 {[%clk 0:00:18]} 43... Kc5 {[%clk 0:00:04.6]} 44.
Be8 {[%clk 0:00:17.1]} 44... Kb6 {[%clk 0:00:04.5]} 45. Bd7 {[%clk 0:00:17]}
45... Bd5 {[%clk 0:00:05]} 46. Be8 {[%clk 0:00:10.8]} 46... Bc4 {[%clk
0:00:05.2]} 47. h4 {[%clk 0:00:07.4]} 47... Bxb5 {[%clk 0:00:05.3]} 48. hxg5
{[%clk 0:00:07.5]} 48... hxg5 {[%clk 0:00:04.9]} 49. Bg6 {[%clk 0:00:04.2]}
49... Kc5 {[%clk 0:00:04.8]} 50. Bf5 {[%clk 0:00:04.7]} 50... Kd4 {[%clk
0:00:05.1]} 51. Bc8 {[%clk 0:00:04.6]} 51... Bc4 {[%clk 0:00:04.9]} 52. Bf5
{[%clk 0:00:04.2]} 52... Ke5 {[%clk 0:00:05.2]} 53. Kf3 {[%clk 0:00:03.5]} 53...
Bd5+ {[%clk 0:00:05.1]} 54. Kf2 {[%clk 0:00:03.5]} 54... Be6 {[%clk 0:00:05.6]}
55. Bd3 {[%clk 0:00:03.2]} 55... Bxg4 {[%clk 0:00:05.7]} 56. Bf1 {[%clk
0:00:03.3]} 56... Bf5 {[%clk 0:00:06.4]} 57. Bg2 {[%clk 0:00:03.7]} 57... g4
{[%clk 0:00:06.7]} 58. Ke2 {[%clk 0:00:04]} 58... Be4 {[%clk 0:00:06.4]} 59. Bf1
{[%clk 0:00:02.8]} 59... Kd4 {[%clk 0:00:06.3]} 60. Kf2 {[%clk 0:00:02.9]} 60...
g3+ {[%clk 0:00:06.6]} 61. Kg1 {[%clk 0:00:03.3]} 61... f3 {[%clk 0:00:06.9]}
62. Bg2 {[%clk 0:00:03.9]} 62... f2+ {[%clk 0:00:06.2]} 63. Kh1 {[%clk
0:00:02.5]} 63... f1=Q# {[%clk 0:00:06.2]} 0-1